[Event "Titled Tuesday Blitz April 12 Early 2022"]
[White "Hua, Lefong"]
[Black "Aaditya Dhingra"]
[WhiteFideId "2602253"]
[BlackFideId "25678191"]
[WhiteElo "2576"]
[BlackElo "1849"]
[Result "1-0"]
[Round "09"]
[TimeControl "180+1"]
[Date "2022.04.13"]
[WhiteClock "0:00:22"]
[BlackClock "0:00:01"]

1. d4 {[%clk 0:03:00]}  Nf6 {[%clk 0:02:58]} 2. c4 {[%clk 0:03:01]}  a6 {[%clk 0:02:58]} 3. Nc3 {[%clk 0:03:00]}  c5 {[%clk 0:02:55]} 4. d5 {[%clk 0:02:51]}  b5 {[%clk 0:02:53]} 5. f3 {[%clk 0:02:42]}  bxc4 {[%clk 0:02:46]} 6. e4 {[%clk 0:02:41]}  d6 {[%clk 0:02:47]} 7. Bxc4 {[%clk 0:02:41]}  g6 {[%clk 0:02:47]} 8. Nge2 {[%clk 0:02:41]}  Bg7 {[%clk 0:02:47]} 9. O-O {[%clk 0:02:41]}  O-O {[%clk 0:02:48]} 10. Rb1 {[%clk 0:02:38]}  Nbd7 {[%clk 0:02:46]} 11. b3 {[%clk 0:02:38]}  Ne5 {[%clk 0:02:39]} 12. f4 {[%clk 0:02:36]}  Nxc4 {[%clk 0:02:34]} 13. bxc4 {[%clk 0:02:37]}  a5 {[%clk 0:02:24]} 14. Qd3 {[%clk 0:02:28]}  Ba6 {[%clk 0:02:22]} 15. Nb5 {[%clk 0:02:23]}  Rb8 {[%clk 0:02:15]} 16. a4 {[%clk 0:02:23]}  e6 {[%clk 0:02:03]} 17. Nec3 {[%clk 0:02:16]}  exd5 {[%clk 0:01:54]} 18. exd5 {[%clk 0:02:09]}  Bc8 {[%clk 0:01:52]} 19. f5 {[%clk 0:01:36]}  Bxf5 {[%clk 0:01:49]} 20. Rxf5 {[%clk 0:01:36]}  gxf5 {[%clk 0:01:49]} 21. Bf4 {[%clk 0:01:36]}  Ne4 {[%clk 0:01:38]} 22. Nxe4 {[%clk 0:01:27]}  fxe4 {[%clk 0:01:39]} 23. Qg3 {[%clk 0:01:23]}  Rb7 {[%clk 0:00:51]} 24. Bxd6 {[%clk 0:01:18]}  Re8 {[%clk 0:00:50]} 25. Bxc5 {[%clk 0:01:13]}  f5 {[%clk 0:00:33]} 26. Rf1 {[%clk 0:01:08]}  Rf7 {[%clk 0:00:18]} 27. Nd6 {[%clk 0:01:02]}  Qc7 {[%clk 0:00:17]} 28. Ba3 {[%clk 0:00:47]}  f4 {[%clk 0:00:15]} 29. Qg4 {[%clk 0:00:35]}  Qa7+ {[%clk 0:00:12]} 30. c5 {[%clk 0:00:32]}  Qa6 {[%clk 0:00:04]} 31. Nxe8 {[%clk 0:00:27]}  h5 {[%clk 0:00:02]} 32. Qg5 {[%clk 0:00:22]}  Rf5 {[%clk 0:00:01]} 1-0


[Site "https://www.chess.com"]

[Event "Titled Tuesday Blitz April 12 Early 2022"]
[White "Iljin, Timofey"]
[Black "Mika, Tomasz"]
[WhiteFideId "14110180"]
[BlackFideId "1132970"]
[WhiteElo "2396"]
[BlackElo "2116"]
[Result "1-0"]
[Round "09"]
[TimeControl "180+1"]
[Date "2022.04.13"]
[WhiteClock "0:01:50"]
[BlackClock "0:01:27"]

1. d4 {[%clk 0:03:00]}  d5 {[%clk 0:02:59]} 2. c4 {[%clk 0:03:01]}  e6 {[%clk 0:02:59]} 3. Nc3 {[%clk 0:03:01]}  c5 {[%clk 0:02:59]} 4. cxd5 {[%clk 0:03:02]}  exd5 {[%clk 0:02:59]} 5. Nf3 {[%clk 0:03:02]}  Nc6 {[%clk 0:02:59]} 6. g3 {[%clk 0:03:03]}  Nf6 {[%clk 0:02:59]} 7. Bg2 {[%clk 0:03:02]}  Be7 {[%clk 0:03:00]} 8. O-O {[%clk 0:03:02]}  O-O {[%clk 0:03:00]} 9. dxc5 {[%clk 0:03:03]}  Bxc5 {[%clk 0:02:57]} 10. Bg5 {[%clk 0:03:04]}  Be6 {[%clk 0:02:52]} 11. Rc1 {[%clk 0:02:57]}  Be7 {[%clk 0:02:45]} 12. Nb5 {[%clk 0:02:48]}  h6 {[%clk 0:02:43]} 13. Be3 {[%clk 0:02:44]}  Qd7 {[%clk 0:02:30]} 14. Nbd4 {[%clk 0:02:40]}  Bh3 {[%clk 0:02:27]} 15. Bxh3 {[%clk 0:02:31]}  Qxh3 {[%clk 0:02:25]} 16. Nxc6 {[%clk 0:02:32]}  bxc6 {[%clk 0:02:21]} 17. Rxc6 {[%clk 0:02:33]}  Ng4 {[%clk 0:02:20]} 18. Qxd5 {[%clk 0:02:28]}  Nxe3 {[%clk 0:02:18]} 19. fxe3 {[%clk 0:02:29]}  Rfe8 {[%clk 0:01:53]} 20. Ne5 {[%clk 0:02:22]}  Bg5 {[%clk 0:01:50]} 21. Qxf7+ {[%clk 0:02:12]}  Kh8 {[%clk 0:01:49]} 22. Ng6+ {[%clk 0:02:05]}  Kh7 {[%clk 0:01:48]} 23. Nf4 {[%clk 0:02:05]}  Rxe3 {[%clk 0:01:43]} 24. Rc7 {[%clk 0:02:01]}  Rxg3+ {[%clk 0:01:39]} 25. hxg3 {[%clk 0:02:00]}  Qxg3+ {[%clk 0:01:39]} 26. Kh1 {[%clk 0:02:00]}  Bxf4 {[%clk 0:01:32]} 27. Qxf4 {[%clk 0:01:53]}  Qh3+ {[%clk 0:01:32]} 28. Kg1 {[%clk 0:01:53]}  Rf8 {[%clk 0:01:27]} 29. Rxg7+ {[%clk 0:01:49]}  Kxg7 {[%clk 0:01:27]} 30. Qxf8+ {[%clk 0:01:50]} 1-0


[Site "https://www.chess.com"]

[Event "Titled Tuesday Blitz April 12 Early 2022"]
[White "Itkis, Boris"]
[Black "Cagara, Paulina"]
[WhiteFideId "1209167"]
[BlackFideId "1124870"]
[WhiteElo "2207"]
[BlackElo "1780"]
[Result "1-0"]
[Round "09"]
[TimeControl "180+1"]
[Date "2022.04.13"]
[WhiteClock "0:00:41"]
[BlackClock "0:00:42"]

1. c4 {[%clk 0:03:00]}  f5 {[%clk 0:02:59]} 2. b4 {[%clk 0:03:00]}  Nf6 {[%clk 0:02:58]} 3. Bb2 {[%clk 0:03:00]}  g6 {[%clk 0:02:58]} 4. e3 {[%clk 0:02:59]}  Bg7 {[%clk 0:02:58]} 5. Nf3 {[%clk 0:03:00]}  O-O {[%clk 0:02:56]} 6. d4 {[%clk 0:03:01]}  d6 {[%clk 0:02:56]} 7. Qb3 {[%clk 0:02:59]}  a5 {[%clk 0:02:54]} 8. b5 {[%clk 0:02:59]}  Kh8 {[%clk 0:02:53]} 9. a4 {[%clk 0:02:59]}  Be6 {[%clk 0:02:49]} 10. Nbd2 {[%clk 0:02:59]}  Bg8 {[%clk 0:02:46]} 11. Be2 {[%clk 0:02:55]}  Nbd7 {[%clk 0:02:44]} 12. Qc2 {[%clk 0:02:50]}  b6 {[%clk 0:02:41]} 13. O-O-O {[%clk 0:02:45]}  Qe8 {[%clk 0:02:32]} 14. d5 {[%clk 0:02:45]}  e5 {[%clk 0:02:29]} 15. h4 {[%clk 0:02:23]}  h5 {[%clk 0:02:26]} 16. Ng5 {[%clk 0:02:22]}  Nc5 {[%clk 0:02:25]} 17. f3 {[%clk 0:02:21]}  e4 {[%clk 0:02:13]} 18. fxe4 {[%clk 0:02:09]}  Nfxe4 {[%clk 0:02:10]} 19. Bxg7+ {[%clk 0:02:07]}  Kxg7 {[%clk 0:02:10]} 20. Ndxe4 {[%clk 0:02:08]}  Nxe4 {[%clk 0:02:09]} 21. Nxe4 {[%clk 0:02:07]}  Qxe4 {[%clk 0:02:07]} 22. Qxe4 {[%clk 0:02:07]}  fxe4 {[%clk 0:02:07]} 23. Rdf1 {[%clk 0:02:06]}  Rxf1+ {[%clk 0:01:54]} 24. Rxf1 {[%clk 0:02:05]}  Rf8 {[%clk 0:01:54]} 25. Rxf8 {[%clk 0:02:00]}  Kxf8 {[%clk 0:01:54]} 26. Kd2 {[%clk 0:02:01]}  Ke7 {[%clk 0:01:54]} 27. Kc3 {[%clk 0:02:01]}  Kf6 {[%clk 0:01:55]} 28. Kd4 {[%clk 0:02:02]}  Kf5 {[%clk 0:01:54]} 29. Bd1 {[%clk 0:01:59]}  Bf7 {[%clk 0:01:49]} 30. Bc2 {[%clk 0:01:51]}  Kg4 {[%clk 0:01:49]} 31. Kxe4 {[%clk 0:01:50]}  Kxh4 {[%clk 0:01:47]} 32. Kf4 {[%clk 0:01:49]}  Be8 {[%clk 0:01:41]} 33. e4 {[%clk 0:01:31]}  g5+ {[%clk 0:01:38]} 34. Kf5 {[%clk 0:01:31]}  Bd7+ {[%clk 0:01:34]} 35. Kf6 {[%clk 0:01:31]}  g4 {[%clk 0:01:32]} 36. Ke7 {[%clk 0:01:28]}  Bxb5 {[%clk 0:01:26]} 37. cxb5 {[%clk 0:01:27]}  Kg3 {[%clk 0:01:26]} 38. Kd7 {[%clk 0:01:12]}  Kxg2 {[%clk 0:01:25]} 39. Kxc7 {[%clk 0:01:13]}  h4 {[%clk 0:01:24]} 40. e5 {[%clk 0:01:13]}  h3 {[%clk 0:01:23]} 41. exd6 {[%clk 0:01:13]}  Kf3 {[%clk 0:01:18]} 42. d7 {[%clk 0:01:03]}  h2 {[%clk 0:01:18]} 43. d8=Q {[%clk 0:00:55]}  h1=Q {[%clk 0:01:18]} 44. Qf6+ {[%clk 0:00:55]}  Kg3 {[%clk 0:01:09]} 45. Qe5+ {[%clk 0:00:55]}  Kf2 {[%clk 0:01:06]} 46. Be4 {[%clk 0:00:51]}  Qc1+ {[%clk 0:01:02]} 47. Kb7 {[%clk 0:00:47]}  g3 {[%clk 0:00:57]} 48. d6 {[%clk 0:00:47]}  g2 {[%clk 0:00:52]} 49. Bxg2 {[%clk 0:00:47]}  Kxg2 {[%clk 0:00:51]} 50. d7 {[%clk 0:00:44]}  Qd2 {[%clk 0:00:51]} 51. Qc7 {[%clk 0:00:41]}  Qd5+ {[%clk 0:00:42]} 52. Ka7 {[%clk 0:00:41]} 1-0


[Site "https://www.chess.com"]

[Event "Titled Tuesday Blitz April 12 Early 2022"]
[White "Kadam, Om Manish"]
[Black "Molina, Roberto Junio Brito"]
[WhiteFideId "45076294"]
[BlackFideId "2109450"]
[WhiteElo "1729"]
[BlackElo "2432"]
[Result "1-0"]
[Round "09"]
[TimeControl "180+1"]
[Date "2022.04.13"]
[WhiteClock "0:01:45"]
[BlackClock "0:01:20"]

1. e4 {[%clk 0:03:00]}  c6 {[%clk 0:02:19]} 2. c4 {[%clk 0:03:00]}  d5 {[%clk 0:02:14]} 3. exd5 {[%clk 0:03:01]}  cxd5 {[%clk 0:02:14]} 4. cxd5 {[%clk 0:03:01]}  Nf6 {[%clk 0:02:12]} 5. Nc3 {[%clk 0:03:02]}  Nxd5 {[%clk 0:02:11]} 6. Nf3 {[%clk 0:03:03]}  e6 {[%clk 0:02:11]} 7. d4 {[%clk 0:03:03]}  Be7 {[%clk 0:02:11]} 8. Bd3 {[%clk 0:03:03]}  O-O {[%clk 0:02:12]} 9. O-O {[%clk 0:03:03]}  Nc6 {[%clk 0:02:12]} 10. a3 {[%clk 0:03:02]}  Nf6 {[%clk 0:02:11]} 11. Re1 {[%clk 0:03:00]}  b6 {[%clk 0:02:10]} 12. Ne4 {[%clk 0:02:41]}  Bb7 {[%clk 0:02:07]} 13. Be3 {[%clk 0:02:37]}  Rc8 {[%clk 0:02:06]} 14. Rc1 {[%clk 0:02:28]}  Na5 {[%clk 0:01:58]} 15. Nxf6+ {[%clk 0:02:23]}  Bxf6 {[%clk 0:01:58]} 16. b4 {[%clk 0:02:20]}  Nc6 {[%clk 0:01:52]} 17. Bb1 {[%clk 0:02:14]}  Ne7 {[%clk 0:01:49]} 18. Ne5 {[%clk 0:02:10]}  Qd5 {[%clk 0:01:43]} 19. f3 {[%clk 0:02:02]}  Rfd8 {[%clk 0:01:37]} 20. Be4 {[%clk 0:01:58]}  Rxc1 {[%clk 0:01:18]} 21. Qxc1 {[%clk 0:01:52]}  Qd6 {[%clk 0:01:18]} 22. Bxb7 {[%clk 0:01:52]}  Bxe5 {[%clk 0:01:19]} 23. dxe5 {[%clk 0:01:52]}  Qxe5 {[%clk 0:01:20]} 24. Bxb6 {[%clk 0:01:45]} 1-0


[Site "https://www.chess.com"]

[Event "Titled Tuesday Blitz April 12 Early 2022"]
[White "Kobalia, Mikhail"]
[Black "Khripachenko, Alexander"]
[WhiteFideId "4119150"]
[BlackFideId "54184975"]
[WhiteElo "2667"]
[BlackElo "2193"]
[Result "1-0"]
[Round "09"]
[TimeControl "180+1"]
[Date "2022.04.12"]
[WhiteClock "0:02:08"]
[BlackClock "0:00:55"]

1. e4 {[%clk 0:02:49]}  c5 {[%clk 0:02:59]} 2. Nf3 {[%clk 0:02:48]}  d6 {[%clk 0:02:59]} 3. d4 {[%clk 0:02:49]}  cxd4 {[%clk 0:03:00]} 4. Nxd4 {[%clk 0:02:49]}  Nf6 {[%clk 0:03:01]} 5. Nc3 {[%clk 0:02:50]}  a6 {[%clk 0:03:00]} 6. Be3 {[%clk 0:02:50]}  e6 {[%clk 0:03:00]} 7. f3 {[%clk 0:02:50]}  b5 {[%clk 0:03:00]} 8. g4 {[%clk 0:02:50]}  Bb7 {[%clk 0:03:00]} 9. g5 {[%clk 0:02:48]}  Nfd7 {[%clk 0:03:00]} 10. a3 {[%clk 0:02:48]}  Nb6 {[%clk 0:02:59]} 11. h4 {[%clk 0:02:47]}  N8d7 {[%clk 0:02:59]} 12. Qe2 {[%clk 0:02:41]}  Qc7 {[%clk 0:02:58]} 13. O-O-O {[%clk 0:02:40]}  Rc8 {[%clk 0:02:45]} 14. Qe1 {[%clk 0:02:40]}  Nc4 {[%clk 0:02:38]} 15. Bxc4 {[%clk 0:02:37]}  Qxc4 {[%clk 0:02:38]} 16. h5 {[%clk 0:02:37]}  Be7 {[%clk 0:02:17]} 17. g6 {[%clk 0:02:35]}  Bf6 {[%clk 0:01:39]} 18. gxf7+ {[%clk 0:02:31]}  Kxf7 {[%clk 0:01:40]} 19. Kb1 {[%clk 0:02:31]}  b4 {[%clk 0:01:24]} 20. axb4 {[%clk 0:02:28]}  Qxb4 {[%clk 0:01:25]} 21. h6 {[%clk 0:02:26]}  g6 {[%clk 0:01:16]} 22. Ncb5 {[%clk 0:02:19]}  Qc5 {[%clk 0:00:55]} 23. b4 {[%clk 0:02:08]} 1-0


[Site "https://www.chess.com"]

[Event "Titled Tuesday Blitz April 12 Early 2022"]
[White "Korchmar, Vasiliy"]
[Black "Maksimenko, Viktor"]
[WhiteFideId "24131750"]
[BlackFideId "13710478"]
[WhiteElo "2370"]
[BlackElo "2269"]
[Result "0-1"]
[Round "09"]
[TimeControl "180+1"]
[Date "2022.04.12"]
[WhiteClock "0:01:29"]
[BlackClock "0:01:58"]

1. d4 {[%clk 0:03:00]}  Nf6 {[%clk 0:02:57]} 2. Bf4 {[%clk 0:03:01]}  d5 {[%clk 0:02:56]} 3. e3 {[%clk 0:03:00]}  c5 {[%clk 0:02:56]} 4. Nf3 {[%clk 0:03:00]}  cxd4 {[%clk 0:02:55]} 5. exd4 {[%clk 0:03:00]}  Nc6 {[%clk 0:02:55]} 6. Nbd2 {[%clk 0:03:00]}  Bg4 {[%clk 0:02:55]} 7. c3 {[%clk 0:02:59]}  e6 {[%clk 0:02:55]} 8. Qb3 {[%clk 0:02:59]}  Qc8 {[%clk 0:02:55]} 9. Bd3 {[%clk 0:02:59]}  Be7 {[%clk 0:02:55]} 10. O-O {[%clk 0:03:00]}  O-O {[%clk 0:02:56]} 11. Rae1 {[%clk 0:02:58]}  Bh5 {[%clk 0:02:54]} 12. Qc2 {[%clk 0:02:48]}  Bg6 {[%clk 0:02:51]} 13. Bxg6 {[%clk 0:02:48]}  hxg6 {[%clk 0:02:52]} 14. Qd3 {[%clk 0:02:49]}  Rd8 {[%clk 0:02:49]} 15. Ng5 {[%clk 0:02:45]}  Nh5 {[%clk 0:02:43]} 16. Qh3 {[%clk 0:02:36]}  Bf6 {[%clk 0:02:35]} 17. Ndf3 {[%clk 0:02:28]}  Nxf4 {[%clk 0:02:28]} 18. Qh7+ {[%clk 0:02:23]}  Kf8 {[%clk 0:02:28]} 19. g3 {[%clk 0:01:59]}  Ke7 {[%clk 0:02:23]} 20. gxf4 {[%clk 0:01:40]}  Rh8 {[%clk 0:02:16]} 21. Rxe6+ {[%clk 0:01:41]}  Qxe6 {[%clk 0:02:11]} 22. Nxe6 {[%clk 0:01:41]}  Rxh7 {[%clk 0:02:11]} 23. Nc7 {[%clk 0:01:41]}  Rd8 {[%clk 0:02:11]} 24. Re1+ {[%clk 0:01:41]}  Kf8 {[%clk 0:02:11]} 25. Ne5 {[%clk 0:01:35]}  Bxe5 {[%clk 0:02:10]} 26. fxe5 {[%clk 0:01:36]}  a6 {[%clk 0:02:08]} 27. e6 {[%clk 0:01:34]}  Rh5 {[%clk 0:02:04]} 28. f4 {[%clk 0:01:29]}  Rc8 {[%clk 0:01:58]} 0-1


[Site "https://www.chess.com"]

[Event "Titled Tuesday Blitz April 12 Early 2022"]
[White "Kostina, Nadezhda"]
[Black "Calin, Alexandru"]
[WhiteFideId "4195876"]
[BlackFideId "1222961"]
[WhiteElo "1982"]
[BlackElo "2020"]
[Result "1-0"]
[Round "09"]
[TimeControl "180+1"]
[Date "2022.04.13"]
[WhiteClock "0:00:18"]
[BlackClock "0:00:39"]

1. e4 {[%clk 0:03:00]}  d6 {[%clk 0:03:00]} 2. d4 {[%clk 0:03:00]}  Nf6 {[%clk 0:03:00]} 3. Nc3 {[%clk 0:02:59]}  Nbd7 {[%clk 0:03:01]} 4. Nf3 {[%clk 0:02:57]}  e5 {[%clk 0:03:01]} 5. Bc4 {[%clk 0:02:57]}  Be7 {[%clk 0:03:01]} 6. h3 {[%clk 0:02:49]}  O-O {[%clk 0:03:01]} 7. O-O {[%clk 0:02:49]}  c6 {[%clk 0:03:00]} 8. Re1 {[%clk 0:02:37]}  b5 {[%clk 0:02:59]} 9. Bb3 {[%clk 0:02:36]}  a5 {[%clk 0:02:59]} 10. d5 {[%clk 0:02:30]}  Bb7 {[%clk 0:02:53]} 11. dxc6 {[%clk 0:02:27]}  Bxc6 {[%clk 0:02:54]} 12. a4 {[%clk 0:02:27]}  b4 {[%clk 0:02:52]} 13. Nd5 {[%clk 0:02:19]}  Nc5 {[%clk 0:02:52]} 14. Nxe7+ {[%clk 0:02:14]}  Qxe7 {[%clk 0:02:52]} 15. Bg5 {[%clk 0:02:14]}  h6 {[%clk 0:02:47]} 16. Bh4 {[%clk 0:02:11]}  Nxb3 {[%clk 0:02:45]} 17. cxb3 {[%clk 0:02:09]}  g5 {[%clk 0:02:45]} 18. Nxg5 {[%clk 0:02:00]}  hxg5 {[%clk 0:02:42]} 19. Bxg5 {[%clk 0:02:00]}  Qe6 {[%clk 0:02:41]} 20. Re3 {[%clk 0:01:59]}  Nxe4 {[%clk 0:02:37]} 21. Bh4 {[%clk 0:01:36]}  f5 {[%clk 0:02:30]} 22. Rc1 {[%clk 0:01:32]}  Rac8 {[%clk 0:02:24]} 23. Rd3 {[%clk 0:01:16]}  Qh6 {[%clk 0:02:06]} 24. Be7 {[%clk 0:01:07]}  Rf7 {[%clk 0:01:53]} 25. Bxd6 {[%clk 0:01:06]}  Rg7 {[%clk 0:01:44]} 26. Bxe5 {[%clk 0:01:02]}  Rxg2+ {[%clk 0:01:35]} 27. Kxg2 {[%clk 0:01:01]}  Nc3+ {[%clk 0:01:34]} 28. Kh2 {[%clk 0:00:45]}  Nxd1 {[%clk 0:01:33]} 29. Rdxd1 {[%clk 0:00:39]}  Qe6 {[%clk 0:01:25]} 30. f4 {[%clk 0:00:32]}  Kf7 {[%clk 0:01:23]} 31. Rd6 {[%clk 0:00:30]}  Qe8 {[%clk 0:01:13]} 32. Rg1 {[%clk 0:00:28]}  Be4 {[%clk 0:00:57]} 33. Rf6+ {[%clk 0:00:23]}  Ke7 {[%clk 0:00:56]} 34. Rg7+ {[%clk 0:00:23]}  Kd8 {[%clk 0:00:54]} 35. Rd6+ {[%clk 0:00:23]}  Qd7 {[%clk 0:00:50]} 36. Rdxd7+ {[%clk 0:00:23]}  Ke8 {[%clk 0:00:51]} 37. Rge7+ {[%clk 0:00:20]}  Kf8 {[%clk 0:00:51]} 38. Bg7+ {[%clk 0:00:20]}  Kg8 {[%clk 0:00:51]} 39. Bh6 {[%clk 0:00:19]}  Rc2+ {[%clk 0:00:51]} 40. Kg1 {[%clk 0:00:19]}  Rc8 {[%clk 0:00:39]} 41. Rg7+ {[%clk 0:00:18]}  Kh8 {[%clk 0:00:39]} 42. Rh7+ {[%clk 0:00:18]} 1-0


[Site "https://www.chess.com"]

[Event "Titled Tuesday Blitz April 12 Early 2022"]
[White "Kozak, Antoni"]
[Black "Martinez Alcantara, Jose Eduardo"]
[WhiteFideId "21832030"]
[BlackFideId "3805662"]
[WhiteElo "2236"]
[BlackElo "2690"]
[Result "0-1"]
[Round "09"]
[TimeControl "180+1"]
[Date "2022.04.12"]
[WhiteClock "0:00:09"]
[BlackClock "0:01:42"]

1. Nf3 {[%clk 0:02:41]}  c5 {[%clk 0:02:59]} 2. c4 {[%clk 0:02:37]}  Nc6 {[%clk 0:03:00]} 3. Nc3 {[%clk 0:02:36]}  g6 {[%clk 0:02:59]} 4. g3 {[%clk 0:02:36]}  Bg7 {[%clk 0:03:00]} 5. Bg2 {[%clk 0:02:36]}  d6 {[%clk 0:03:00]} 6. O-O {[%clk 0:02:36]}  e6 {[%clk 0:03:01]} 7. b3 {[%clk 0:02:33]}  Nge7 {[%clk 0:03:02]} 8. Bb2 {[%clk 0:02:33]}  O-O {[%clk 0:03:03]} 9. e3 {[%clk 0:02:31]}  b6 {[%clk 0:03:03]} 10. d4 {[%clk 0:02:27]}  Bb7 {[%clk 0:03:03]} 11. d5 {[%clk 0:02:12]}  exd5 {[%clk 0:03:01]} 12. cxd5 {[%clk 0:02:12]}  Nb4 {[%clk 0:03:00]} 13. e4 {[%clk 0:02:12]}  Ba6 {[%clk 0:03:00]} 14. a3 {[%clk 0:01:50]}  Nd3 {[%clk 0:02:58]} 15. Qe2 {[%clk 0:01:15]}  Nxb2 {[%clk 0:02:48]} 16. Qxb2 {[%clk 0:01:14]}  Bxf1 {[%clk 0:02:47]} 17. Bxf1 {[%clk 0:01:14]}  b5 {[%clk 0:02:42]} 18. b4 {[%clk 0:00:54]}  Rc8 {[%clk 0:02:36]} 19. Rc1 {[%clk 0:00:51]}  cxb4 {[%clk 0:02:23]} 20. Qxb4 {[%clk 0:00:51]}  a5 {[%clk 0:02:22]} 21. Qb3 {[%clk 0:00:48]}  Qb6 {[%clk 0:02:19]} 22. Na4 {[%clk 0:00:34]}  Qa7 {[%clk 0:02:19]} 23. Rxc8 {[%clk 0:00:33]}  Nxc8 {[%clk 0:02:19]} 24. Bxb5 {[%clk 0:00:31]}  Nb6 {[%clk 0:02:18]} 25. Nb2 {[%clk 0:00:30]}  Rb8 {[%clk 0:02:17]} 26. a4 {[%clk 0:00:29]}  Bxb2 {[%clk 0:02:08]} 27. Qxb2 {[%clk 0:00:29]}  Nxa4 {[%clk 0:02:08]} 28. Qc2 {[%clk 0:00:12]}  Nc5 {[%clk 0:02:01]} 29. Bc6 {[%clk 0:00:12]}  a4 {[%clk 0:02:00]} 30. e5 {[%clk 0:00:12]}  a3 {[%clk 0:02:00]} 31. e6 {[%clk 0:00:11]}  a2 {[%clk 0:01:57]} 32. exf7+ {[%clk 0:00:11]}  Kf8 {[%clk 0:01:57]} 33. Kg2 {[%clk 0:00:10]}  a1=Q {[%clk 0:01:57]} 34. Ng5 {[%clk 0:00:10]}  Qxf7 {[%clk 0:01:43]} 35. Nxf7 {[%clk 0:00:09]}  Kxf7 {[%clk 0:01:44]} 36. Qe2 {[%clk 0:00:09]}  Qe5 {[%clk 0:01:42]} 37. Qf3+ {[%clk 0:00:09]}  Kg7 {[%clk 0:01:42]} 38. h4 {[%clk 0:00:09]}  Qe4 {[%clk 0:01:42]} 0-1


[Site "https://www.chess.com"]

[Event "Titled Tuesday Blitz April 12 Early 2022"]
[White "Kukhmazov, Arsen"]
[Black "Kakulidis, Ellen"]
[WhiteFideId "24108260"]
[BlackFideId "1444972"]
[WhiteElo "2310"]
[BlackElo "1852"]
[Result "1-0"]
[Round "09"]
[TimeControl "180+1"]
[Date "2022.04.13"]
[WhiteClock "0:00:53"]
[BlackClock "0:00:02"]

1. Nf3 {[%clk 0:02:48]}  d5 {[%clk 0:02:59]} 2. c4 {[%clk 0:02:48]}  e6 {[%clk 0:02:59]} 3. d4 {[%clk 0:02:45]}  Nf6 {[%clk 0:02:59]} 4. e3 {[%clk 0:02:45]}  Bb4+ {[%clk 0:02:54]} 5. Bd2 {[%clk 0:02:43]}  Bxd2+ {[%clk 0:02:46]} 6. Nbxd2 {[%clk 0:02:44]}  O-O {[%clk 0:02:45]} 7. Bd3 {[%clk 0:02:44]}  b6 {[%clk 0:02:43]} 8. O-O {[%clk 0:02:42]}  Bb7 {[%clk 0:02:41]} 9. Qc2 {[%clk 0:02:42]}  Nbd7 {[%clk 0:02:39]} 10. Rfd1 {[%clk 0:02:42]}  h6 {[%clk 0:02:39]} 11. Rac1 {[%clk 0:02:42]}  Rc8 {[%clk 0:02:35]} 12. c5 {[%clk 0:02:40]}  c6 {[%clk 0:02:32]} 13. b4 {[%clk 0:02:40]}  Qe7 {[%clk 0:02:10]} 14. e4 {[%clk 0:02:36]}  e5 {[%clk 0:02:07]} 15. dxe5 {[%clk 0:02:29]}  Nxe5 {[%clk 0:02:06]} 16. Nxe5 {[%clk 0:02:30]}  Qxe5 {[%clk 0:02:06]} 17. Nf3 {[%clk 0:02:30]}  Qe7 {[%clk 0:01:54]} 18. e5 {[%clk 0:02:27]}  Nd7 {[%clk 0:01:43]} 19. Re1 {[%clk 0:02:21]}  Rfe8 {[%clk 0:01:01]} 20. Nd4 {[%clk 0:02:04]}  bxc5 {[%clk 0:00:55]} 21. bxc5 {[%clk 0:02:04]}  Nf8 {[%clk 0:00:55]} 22. Nf5 {[%clk 0:02:04]}  Qg5 {[%clk 0:00:43]} 23. Nd6 {[%clk 0:01:55]}  Rb8 {[%clk 0:00:29]} 24. Nxe8 {[%clk 0:01:52]}  Rxe8 {[%clk 0:00:29]} 25. Qb2 {[%clk 0:01:52]}  Bc8 {[%clk 0:00:27]} 26. g3 {[%clk 0:01:49]}  Be6 {[%clk 0:00:20]} 27. f4 {[%clk 0:01:49]}  Qh5 {[%clk 0:00:18]} 28. Qf2 {[%clk 0:01:44]}  Bh3 {[%clk 0:00:16]} 29. f5 {[%clk 0:01:43]}  Nd7 {[%clk 0:00:13]} 30. Qf4 {[%clk 0:01:37]}  Bg4 {[%clk 0:00:08]} 31. a4 {[%clk 0:01:17]}  a5 {[%clk 0:00:07]} 32. Re3 {[%clk 0:01:10]}  Qh3 {[%clk 0:00:07]} 33. Be2 {[%clk 0:00:53]}  Bxe2 {[%clk 0:00:06]} 34. Rxe2 {[%clk 0:00:54]}  Rb8 {[%clk 0:00:05]} 35. e6 {[%clk 0:00:54]}  Nf6 {[%clk 0:00:04]} 36. Qxb8+ {[%clk 0:00:54]}  Kh7 {[%clk 0:00:04]} 37. exf7 {[%clk 0:00:53]}  Ne4 {[%clk 0:00:02]} 38. Qg8# {[%clk 0:00:53]} 1-0


[Site "https://www.chess.com"]

[Event "Titled Tuesday Blitz April 12 Early 2022"]
[White "Lauridsen, Jesper Morch"]
[Black "Ianov, Viktor"]
[WhiteFideId "1401890"]
[BlackFideId "14102730"]
[WhiteElo "2320"]
[BlackElo "2161"]
[Result "0-1"]
[Round "09"]
[TimeControl "180+1"]
[Date "2022.04.13"]
[WhiteClock "0:00:23"]
[BlackClock "0:01:52"]

1. e4 {[%clk 0:03:00]}  d6 {[%clk 0:02:58]} 2. d4 {[%clk 0:03:00]}  Nf6 {[%clk 0:02:56]} 3. Nc3 {[%clk 0:02:59]}  c6 {[%clk 0:02:54]} 4. Nge2 {[%clk 0:02:53]}  Nbd7 {[%clk 0:02:52]} 5. g3 {[%clk 0:02:53]}  e5 {[%clk 0:02:52]} 6. Bg2 {[%clk 0:02:53]}  Be7 {[%clk 0:02:52]} 7. O-O {[%clk 0:02:53]}  O-O {[%clk 0:02:52]} 8. h3 {[%clk 0:02:53]}  h5 {[%clk 0:02:52]} 9. f4 {[%clk 0:02:50]}  b5 {[%clk 0:02:52]} 10. a3 {[%clk 0:02:49]}  a5 {[%clk 0:02:51]} 11. Be3 {[%clk 0:02:46]}  Bb7 {[%clk 0:02:51]} 12. fxe5 {[%clk 0:02:42]}  dxe5 {[%clk 0:02:50]} 13. d5 {[%clk 0:02:41]}  Qc7 {[%clk 0:02:46]} 14. dxc6 {[%clk 0:02:33]}  Bxc6 {[%clk 0:02:45]} 15. Nd5 {[%clk 0:02:33]}  Bxd5 {[%clk 0:02:41]} 16. exd5 {[%clk 0:02:33]}  Bc5 {[%clk 0:02:40]} 17. Bxc5 {[%clk 0:02:29]}  Qxc5+ {[%clk 0:02:38]} 18. Kh2 {[%clk 0:02:29]}  Rac8 {[%clk 0:02:37]} 19. c3 {[%clk 0:02:28]}  b4 {[%clk 0:02:35]} 20. axb4 {[%clk 0:02:27]}  axb4 {[%clk 0:02:35]} 21. Ra4 {[%clk 0:02:06]}  bxc3 {[%clk 0:02:31]} 22. Nxc3 {[%clk 0:02:06]}  Rb8 {[%clk 0:02:27]} 23. Qe2 {[%clk 0:01:52]}  Rb4 {[%clk 0:02:19]} 24. Ra6 {[%clk 0:01:47]}  Rfb8 {[%clk 0:02:17]} 25. Ne4 {[%clk 0:00:59]}  Nxe4 {[%clk 0:02:10]} 26. Qxh5 {[%clk 0:00:26]}  Nef6 {[%clk 0:02:00]} 27. Rfxf6 {[%clk 0:00:23]}  Nxf6 {[%clk 0:02:00]} 28. Rxf6 {[%clk 0:00:23]}  gxf6 {[%clk 0:01:59]} 29. Qh6 {[%clk 0:00:23]}  Qd6 {[%clk 0:01:52]} 0-1


[Site "https://www.chess.com"]